fUST/lending_fUST_20250307
["ID","MTS","AMOUNT","RATE_DAILY","PERIOD"]
[355598827,1741357841165,-500.0,0.00030019,6]
[355598828,1741357841177,-405.35,0.00030136,2]
[355598829,1741357841187,-500.0,0.00030156,6]
[355598830,1741357841197,-500.0,0.00030156,6]
[355598831,1741357841207,-2258.0,0.00030206,2]
[355598832,1741357841220,-500.0,0.00030293,6]
[355598833,1741357841231,-500.0,0.00030293,6]
[355598834,1741357841240,-500.0,0.0003043,6]
[355598835,1741357841251,-500.0,0.0003043,6]
[355598836,1741357841261,-500.0,0.00030476,5]
[355598837,1741357841271,-500.0,0.00030476,5]
[355598838,1741357841281,-500.0,0.00030567,6]
[355598839,1741357841291,-500.0,0.00030567,6]
[355598840,1741357841304,-500.0,0.00030704,6]
[355598841,1741357841314,-500.0,0.00030704,6]
[355598842,1741357841325,-500.0,0.00030841,6]
[355598843,1741357841334,-500.0,0.00030841,6]
[355598844,1741357841344,-500.0,0.00030978,6]
[355598845,1741357841353,-500.0,0.00030978,6]
[355598846,1741357841364,-349.0,0.0003098,2]
[355598847,1741357841374,-349.0,0.0003098,2]
[355598848,1741357841384,-349.0,0.0003098,2]
[355598849,1741357841394,-349.0,0.0003098,2]
[355598850,1741357841404,-349.0,0.0003098,2]
[355598851,1741357841414,-349.0,0.0003098,2]
[355598852,1741357841424,-349.0,0.0003098,2]
[355598853,1741357841434,-349.0,0.0003098,2]
[355598854,1741357841444,-349.0,0.0003098,2]
[355598855,1741357841454,-349.0,0.0003098,2]
[355598856,1741357841464,-349.0,0.0003098,2]
[355598857,1741357841473,-349.0,0.0003098,2]
[355598858,1741357841483,-349.0,0.0003098,2]
[355598859,1741357841492,-349.0,0.0003098,2]
[355598860,1741357841504,-349.0,0.0003098,2]
[355598861,1741357841514,-349.0,0.0003098,2]
[355598862,1741357841523,-349.0,0.0003098,2]
[355598863,1741357841533,-349.0,0.0003098,2]
[355598864,1741357841543,-349.0,0.0003098,2]
[355598865,1741357841562,-349.0,0.0003098,2]
[355598866,1741357841572,-349.0,0.0003098,2]
[355598867,1741357841582,-349.0,0.0003098,2]
[355598868,1741357841592,-349.0,0.0003098,2]
[355598869,1741357841601,-349.0,0.0003098,2]
[355598870,1741357841611,-349.0,0.0003098,2]
[355598871,1741357841621,-349.0,0.0003098,2]
[355598872,1741357841631,-349.0,0.0003098,2]
[355598873,1741357841640,-349.0,0.0003098,2]
[355598874,1741357841651,-349.0,0.0003098,2]
[355598875,1741357841661,-349.0,0.0003098,2]
[355598876,1741357841670,-349.0,0.0003098,2]
[355598877,1741357841680,-349.0,0.0003098,2]
[355598878,1741357841691,-349.0,0.0003098,2]
[355598879,1741357841701,-349.0,0.0003098,2]
[355598880,1741357841711,-349.0,0.0003098,2]
[355598881,1741357841721,-349.0,0.0003098,2]
[355598882,1741357841731,-349.0,0.0003098,2]
[355598883,1741357841742,-349.0,0.0003098,2]
[355598884,1741357841752,-349.0,0.0003098,2]
[355598885,1741357841762,-349.0,0.0003098,2]
[355598886,1741357841772,-299.75137573,0.0003099,2]
[355598887,1741357841782,-156.857475,0.000311,10]
[355598888,1741357841792,-500.0,0.00031115,6]
[355598889,1741357841806,-500.0,0.00031115,6]
[355598890,1741357841816,-500.0,0.00031252,6]
[355598891,1741357841825,-500.0,0.00031252,6]
[355598892,1741357841835,-500.0,0.00031389,6]
[355598893,1741357841845,-500.0,0.00031389,6]
[355598894,1741357841854,-405.35,0.00031506,2]
[355598895,1741357841864,-500.0,0.00031526,6]
[355598896,1741357841874,-237.0,0.00031526,6]
[355598897,1741357841884,-500.0,0.00031526,6]
[355598898,1741357841893,-500.0,0.00031663,6]
[355598899,1741357841903,-500.0,0.000318,6]
[355598900,1741357841912,-1000.0,0.00031817,5]
[355598901,1741357841922,-1000.0,0.00031817,5]
[355598902,1741357841931,-504.70653655,0.00031817,5]
[355598903,1741357841941,-1000.0,0.00031817,5]
[355598904,1741357841951,-1000.0,0.00031817,5]
[355598905,1741357841960,-502.73855778,0.00031817,5]
[355598906,1741357841970,-1000.0,0.00031817,5]
[355598907,1741357841980,-283.43632182,0.00031817,5]
[355598908,1741357841990,-1000.0,0.00031817,5]
[355598909,1741357841999,-500.50894142,0.00031817,5]
[355598910,1741357842009,-510.37347128,0.00031817,5]
[355598911,1741357842018,-507.17636086,0.00031817,5]
[355598912,1741357842028,-1000.0,0.00031817,2]
[355598913,1741357842038,-1006.32386751,0.00031817,5]
[355598914,1741357842049,-500.0,0.00031937,6]
[355598915,1741357842059,-50407.41762282,0.00032,120]
[355598916,1741357842069,-500.0,0.00032074,6]
[355598917,1741357842078,-500.0,0.00032211,6]
[355598918,1741357842089,-6891.01344349,0.0003224,2]
[355598919,1741357842099,-2000.0,0.00032324,4]
[355598920,1741357842110,-500.0,0.00032348,6]
[355598921,1741357842119,-500.0,0.00032485,6]
[355598922,1741357842130,-208.81456216,0.000325,30]
[355598923,1741357842141,-500.0,0.00032622,6]
[355598924,1741357842151,-398.0,0.00032701,2]
[355598925,1741357842161,-500.0,0.00032759,6]
[355598926,1741357842171,-405.35,0.00032876,2]
[355598927,1741357842181,-500.0,0.00032896,6]
[355598928,1741357842191,-301.93,0.000329,30]
[355598929,1741357842201,-357.23,0.000329,30]
[355598930,1741357842212,-2833.0,0.00032962,2]
[355598931,1741357842222,-168.0,0.00033,2]
[355598932,1741357842232,-168.0,0.00033,2]
[355598933,1741357842241,-500.0,0.00033033,6]
[355598934,1741357842251,-500.0,0.0003317,6]
[355598935,1741357842262,-1000.0,0.00033208,5]
[355598936,1741357842271,-500.0,0.00033307,6]
[355598937,1741357842281,-500.0,0.00033444,6]
[355598939,1741357842290,-1500.0,0.00033471,5]
[355598940,1741357842303,-1500.0,0.00033471,5]
[355598941,1741357842313,-500.0,0.00033581,6]
[355598942,1741357842323,-1000.0,0.00033704,5]
[355598943,1741357842333,-1831.1588442,0.0003371,4]
[355598944,1741357842343,-500.0,0.00033718,6]
[355598945,1741357842354,-500.0,0.00033763,7]
[355598946,1741357842365,-156.857475,0.00033781,4]
[355598947,1741357842375,-600.0,0.00033833,7]
[355598948,1741357842385,-500.0,0.00033855,6]
[355598949,1741357842395,-2251.72,0.000339,2]
[355598950,1741357842405,-500.0,0.00033928,7]
[355598951,1741357842415,-500.0,0.00033992,6]
[355598953,1741357842425,-764.75,0.00033999,2]
[355598954,1741357842435,-764.75,0.00033999,2]
[355598955,1741357842445,-764.75,0.00033999,2]
[355598956,1741357842456,-764.75,0.00033999,2]
[355598957,1741357842466,-764.75,0.00033999,2]
[355598958,1741357842476,-764.75,0.00033999,2]
[355598959,1741357842485,-764.75,0.00033999,2]
[355598960,1741357842495,-764.75,0.00033999,2]
[355598961,1741357842505,-764.76,0.00033999,2]
[355598962,1741357842515,-764.76,0.00033999,2]
[355598964,1741357842525,-64646.4,0.00034,2]
[355598966,1741357842535,-37356.142399,0.00034,2]
[355598967,1741357842545,-21061.10184414,0.00034,2]
[355598969,1741357842559,-208.0,0.00034,120]
[355598971,1741357842569,-500.0,0.00034129,6]
[355598973,1741357842578,-405.35,0.00034246,2]
[355598975,1741357842588,-500.0,0.00034266,6]
[355598977,1741357842598,-500.0,0.00034314,7]
[355598979,1741357842607,-500.0,0.00034403,6]
[355598980,1741357842617,-500.0,0.0003454,6]
[355598981,1741357842626,-500.0,0.00034677,6]
[355598982,1741357842636,-500.0,0.00034814,6]
[355598983,1741357842645,-500.0,0.00034951,6]
[355598984,1741357842655,-21909.4321669,0.00035,2]
[355598985,1741357842663,-500.0,0.00035088,6]
[355598986,1741357842673,-500.0,0.00035099,7]
[355598987,1741357842682,-500.0,0.00035225,6]
[355598988,1741357842692,-500.0,0.00035362,6]
[355598990,1741357842702,-1000.0,0.00035368,5]
[355598991,1741357842711,-1000.0,0.00035368,5]
[355598993,1741357842720,-500.0,0.00035499,6]
[355598994,1741357842730,-405.35,0.00035616,2]
[355598995,1741357842740,-216.07319649,0.00035616,7]
[355598996,1741357842750,-1000.0,0.00035616,2]
[355598997,1741357842760,-170.118,0.00035617,42]
[355598998,1741357842769,-500.0,0.00035636,6]
[355598999,1741357842780,-398.0,0.00035701,2]
[355599000,1741357842789,-500.0,0.00035773,6]
[355599001,1741357842803,-500.0,0.00035778,7]
[355599003,1741357842813,-600.0,0.00035847,7]
[355599005,1741357842823,-2000.0,0.00035859,4]
[355599007,1741357842833,-500.0,0.0003589,2]
[355599008,1741357842842,-561.0,0.0003589,2]
[355599009,1741357842852,-500.0,0.00035895,7]
[355599010,1741357842862,-500.0,0.0003591,6]
[355599011,1741357842872,-791.9923585,0.00035916,2]
[355599012,1741357842883,-504.64575812,0.00035955,5]
[355599013,1741357842893,-1006.04328879,0.00035955,5]
[355599014,1741357842903,-561.0,0.00036,2]
[355599016,1741357842913,-7034.09063134,0.00036,2]
[355599017,1741357842923,-168.0,0.00036,2]
[355599018,1741357842933,-168.0,0.00036,2]
[355599020,1741357842943,-500.0,0.00036047,6]
[355599021,1741357842953,-500.0,0.00036184,6]
[355599022,1741357842963,-1915.01356654,0.000362,98]
[355599023,1741357842972,-200.85761931,0.0003621,2]
[355599024,1741357842982,-261.2569358,0.0003624,2]
[355599025,1741357842991,-500.0,0.00036321,6]
[355599026,1741357843001,-160.0,0.00036387,3]
[355599027,1741357843011,-791.9923585,0.00036428,2]
[355599028,1741357843020,-500.0,0.00036458,6]
[355599029,1741357843030,-600.0,0.00036488,7]
[355599030,1741357843040,-600.0,0.00036531,7]
[355599031,1741357843053,-500.0,0.00036595,6]
[355599032,1741357843063,-791.9923585,0.00036675,2]
[355599033,1741357843072,-500.0,0.000367,7]
[355599034,1741357843082,-500.0,0.00036732,6]
[355599035,1741357843093,-791.9923585,0.00036838,2]
[355599036,1741357843102,-600.0,0.00036845,7]
[355599037,1741357843112,-160.0,0.00036962,3]
[355599038,1741357843122,-405.35,0.00036986,2]
[355599039,1741357843131,-357.23,0.00037,30]
[355599040,1741357843144,-461.83479947,0.00037,24]
[355599041,1741357843154,-26493.64048223,0.00037,5]
[355599042,1741357843164,-1013.49590067,0.00037,2]
[355599043,1741357843175,-791.9923585,0.00037054,2]
[355599044,1741357843185,-301.93,0.000372,30]
[355599046,1741357843194,-791.9923585,0.00037337,2]
[355599047,1741357843203,-500.0,0.00037391,7]
[355599048,1741357843221,-561.0,0.00037397,2]
[355599050,1741357843231,-2000.0,0.000374,19]
[355599051,1741357843241,-156.857475,0.000376,2]
[355599052,1741357843250,-791.9923585,0.00037618,2]
[355599053,1741357843260,-500.0,0.00037643,7]
[355599054,1741357843270,-1915.01356654,0.00037675,106]
[355599055,1741357843280,-600.0,0.00037795,7]
[355599056,1741357843290,-600.0,0.00037813,7]
[355599057,1741357843302,-160.0,0.00037825,4]
[355599059,1741357843312,-600.0,0.00037919,7]
[355599061,1741357843322,-791.9923585,0.00037942,2]
[355599063,1741357843332,-1500.0,0.0003799,5]
[355599065,1741357843345,-1500.0,0.0003799,5]
[355599067,1741357843354,-445.9838382,0.00038,30]
[355599069,1741357843364,-504.0,0.00038,120]
[355599071,1741357843374,-450.77432021,0.00038,2]
[355599073,1741357843383,-416.66666667,0.00038,7]
[355599075,1741357843393,-467.4,0.00038,31]
[355599077,1741357843402,-467.4,0.00038,31]
[355599079,1741357843412,-467.4,0.00038,31]
[355599080,1741357843421,-467.4,0.00038,31]
[355599081,1741357843431,-467.4,0.00038,31]
[355599082,1741357843441,-467.4,0.00038,31]
[355599083,1741357843450,-467.4,0.00038,31]
[355599084,1741357843459,-467.4,0.00038,31]
[355599085,1741357843469,-467.4,0.00038,31]
[355599086,1741357843479,-467.4,0.00038,31]
[355599087,1741357843488,-467.4,0.00038,31]
[355599088,1741357843498,-467.4,0.00038,31]
[355599089,1741357843508,-600.0,0.00038023,7]
[355599090,1741357843518,-600.0,0.00038095,7]
[355599091,1741357843528,-600.0,0.00038147,7]
[355599092,1741357843538,-791.9923585,0.00038271,2]
[355599093,1741357843547,-1080.0,0.00038355,2]
[355599094,1741357843562,-201.34600569,0.00038356,30]
[355599095,1741357843571,-503.61679867,0.00038356,30]
[355599096,1741357843580,-500.0,0.00038356,30]
[355599097,1741357843590,-500.0,0.00038356,30]
[355599098,1741357843600,-806.97,0.00038356,30]
[355599099,1741357843787,-500.0,0.00038356,30]
[355599100,1741357843797,-500.0,0.00038356,30]
[355599101,1741357843814,-500.0,0.00038356,30]
[355599102,1741357843825,-500.0,0.00038356,30]
[355599103,1741357843838,-516.1254438,0.00038356,14]
[355599104,1741357843848,-500.0,0.00038356,30]
[355599105,1741357843858,-500.0,0.00038356,30]
[355599106,1741357843870,-500.0,0.00038356,30]
[355599107,1741357843880,-500.0,0.00038356,30]
[355599108,1741357843890,-538.00695946,0.00038356,30]
[355599109,1741357843899,-500.0,0.00038356,30]
[355599110,1741357843910,-500.0,0.00038356,3]
[355599111,1741357843919,-500.0,0.00038356,30]
[355599113,1741357843930,-500.0,0.00038356,30]
[355599114,1741357843945,-500.0,0.00038356,30]
[355599115,1741357843955,-705.57,0.00038356,30]
[355599116,1741357843964,-500.0,0.00038356,30]
[355599117,1741357843974,-2051.0,0.00038356,30]
[355599118,1741357843985,-500.0,0.00038356,30]
[355599119,1741357843995,-706.25,0.00038356,30]
[355599120,1741357844013,-500.0,0.00038356,30]
[355599121,1741357844022,-500.0,0.00038356,30]
[355599122,1741357844033,-500.0,0.00038356,2]
[355599123,1741357844043,-500.0,0.00038356,30]
[355599124,1741357844056,-580.88,0.00038356,30]
[355599125,1741357844065,-515.71860195,0.00038356,30]
[355599126,1741357844075,-500.0,0.00038356,30]
[355599127,1741357844085,-514.21281176,0.00038356,30]
[355599128,1741357844095,-558.69,0.00038356,30]
[355599129,1741357844104,-500.0,0.00038356,30]
[355599130,1741357844114,-500.0,0.00038356,30]
[355599131,1741357844124,-500.0,0.00038356,30]
[355599132,1741357844137,-500.0,0.00038356,30]
[355599133,1741357844147,-512.17,0.00038356,30]
[355599134,1741357844157,-500.0,0.00038356,30]
[355599135,1741357844166,-503.97978779,0.00038356,30]
[355599136,1741357844177,-500.0,0.00038356,30]
[355599137,1741357844186,-500.0,0.00038356,30]
[355599138,1741357844196,-631.17586454,0.00038356,30]
[355599139,1741357844205,-530.63035293,0.00038356,30]
[355599140,1741357844215,-500.0,0.00038356,30]
[355599141,1741357844226,-500.0,0.00038356,30]
[355599142,1741357844235,-602.65,0.00038356,30]
[355599143,1741357844244,-506.78373826,0.00038356,30]
[355599144,1741357844254,-500.0,0.00038356,30]
[355599145,1741357844264,-500.0,0.00038356,30]
[355599146,1741357844273,-256.13985947,0.00038356,30]
[355599147,1741357844284,-712.98,0.00038356,30]
[355599148,1741357844293,-500.0,0.00038356,30]
[355599149,1741357844306,-513.51803465,0.00038356,30]
[355599150,1741357844316,-500.0,0.00038356,30]
[355599151,1741357844326,-500.0,0.00038356,30]
[355599152,1741357844335,-516.14394934,0.00038356,30]
[355599153,1741357844345,-500.0,0.00038356,30]
[355599154,1741357844355,-1165.07,0.00038356,30]
[355599155,1741357844364,-500.0,0.00038356,30]
[355599156,1741357844374,-1041.2,0.00038356,30]
[355599157,1741357844383,-418.3735394,0.00038356,30]
[355599158,1741357844392,-512.06415367,0.00038356,30]
[355599159,1741357844402,-1106.08,0.00038356,30]
[355599160,1741357844411,-500.0,0.00038356,30]
[355599161,1741357844421,-500.0,0.00038356,30]
[355599162,1741357844431,-832.8,0.00038356,30]
[355599163,1741357844440,-500.0,0.00038356,30]
[355599164,1741357844450,-512.45255476,0.00038356,30]
[355599165,1741357844459,-511.54495338,0.00038356,30]
[355599166,1741357844469,-500.0,0.00038356,30]
[355599167,1741357844479,-509.87893657,0.00038356,30]
[355599168,1741357844488,-513.79814691,0.00038356,30]
[355599169,1741357844498,-516.55268419,0.00038356,30]
[355599170,1741357844507,-500.0,0.00038356,30]
[355599171,1741357844517,-500.0,0.00038356,30]
[355599172,1741357844527,-500.0,0.00038356,30]
[355599173,1741357844537,-500.0,0.00038356,30]
[355599174,1741357844547,-504.18849503,0.00038356,30]
[355599175,1741357844560,-500.0,0.00038356,30]
[355599176,1741357844570,-548.57,0.00038356,30]
[355599177,1741357844579,-500.0,0.00038356,30]
[355599178,1741357844589,-500.0,0.00038356,30]
[355599179,1741357844598,-663.33,0.00038356,30]
[355599180,1741357844608,-513.18362598,0.00038356,30]
[355599181,1741357844617,-500.0,0.00038356,30]
[355599182,1741357844627,-508.46710524,0.00038356,30]
[355599183,1741357844636,-500.0,0.00038356,2]
[355599184,1741357844646,-512.18675471,0.00038356,30]
[355599185,1741357844656,-500.0,0.00038356,30]
[355599186,1741357844666,-500.0,0.00038356,30]
[355599187,1741357844676,-558.94454058,0.00038356,30]
[355599188,1741357844687,-500.0,0.00038356,30]
[355599189,1741357844697,-571.98,0.00038356,30]
[355599190,1741357844708,-517.59045621,0.00038356,30]
[355599191,1741357844721,-508.75,0.00038356,30]
[355599192,1741357844732,-512.35767878,0.00038356,30]
[355599193,1741357844741,-500.0,0.00038356,30]
[355599194,1741357844751,-507.34973067,0.00038356,30]
[355599195,1741357844762,-500.0,0.00038356,30]
[355599196,1741357844772,-773.88,0.00038356,30]
[355599197,1741357844782,-500.0,0.00038356,30]
[355599198,1741357844791,-1190.57,0.00038356,30]
[355599199,1741357844805,-500.0,0.00038356,30]
[355599200,1741357844815,-773.31,0.00038356,30]
[355599201,1741357844824,-535.22,0.00038356,30]
[355599202,1741357844834,-513.6903305,0.00038356,30]
[355599203,1741357844843,-1000.0,0.00038356,7]
[355599204,1741357844853,-500.0,0.00038356,30]
[355599205,1741357844863,-674.96,0.00038356,30]
[355599206,1741357844873,-500.0,0.00038356,30]
[355599207,1741357844883,-500.0,0.00038356,30]
[355599208,1741357844892,-500.0,0.00038356,30]
[355599209,1741357844902,-500.0,0.00038356,30]
[355599210,1741357844912,-15555.67399697,0.00038356,7]
[355599211,1741357844921,-500.0,0.00038356,30]
[355599212,1741357844930,-500.0,0.00038356,30]
[355599213,1741357844940,-511.82651344,0.00038356,30]
[355599214,1741357844949,-241.08099319,0.00038356,30]
[355599215,1741357844959,-1092.95,0.00038356,30]
[355599216,1741357844969,-469.01124277,0.00038356,30]
[355599217,1741357844978,-305.77438302,0.00038356,30]
[355599218,1741357844988,-500.0,0.00038356,30]
[355599219,1741357844997,-8089.12,0.00038356,30]
[355599220,1741357845007,-500.0,0.00038356,30]
[355599221,1741357845017,-1368.46,0.00038356,30]
[355599222,1741357845026,-500.0,0.00038356,30]
[355599223,1741357845036,-1646.73,0.00038356,30]
[355599224,1741357845045,-1042.05,0.00038356,30]
[355599225,1741357845059,-896.61,0.00038356,30]
[355599226,1741357845069,-1423.74,0.00038356,30]
[355599227,1741357845079,-510.50660529,0.00038356,30]
[355599228,1741357845088,-512.83673268,0.00038356,21]
[355599229,1741357845098,-545.4,0.00038356,30]
[355599230,1741357845108,-505.96182877,0.00038356,30]
[355599231,1741357845118,-513.85311838,0.00038356,30]
[355599232,1741357845128,-1667.47,0.00038356,30]
[355599233,1741357845139,-855.28,0.00038356,30]
[355599234,1741357845149,-1876.6,0.00038356,30]
[355599235,1741357845159,-500.0,0.00038356,30]
[355599236,1741357845168,-500.0,0.00038356,30]
[355599237,1741357845178,-685.68,0.00038356,30]
[355599238,1741357845188,-1348.74,0.00038356,30]
[355599239,1741357845198,-1572.44,0.00038356,30]
[355599240,1741357845208,-532.17439305,0.00038356,30]
[355599241,1741357845219,-500.0,0.00038356,30]
[355599242,1741357845228,-510.83706706,0.00038356,30]
[355599243,1741357845238,-512.75100409,0.00038356,30]
[355599244,1741357845247,-405.35,0.00038356,2]
[355599245,1741357845258,-506.43427619,0.00038356,30]
[355599246,1741357845267,-500.0,0.00038356,30]
[355599247,1741357845277,-500.0,0.00038356,30]
[355599248,1741357845286,-500.0,0.00038356,30]
[355599249,1741357845296,-150.35,0.00038356,30]
[355599250,1741357845311,-500.0,0.00038356,30]
[355599251,1741357845321,-500.0,0.00038356,30]
[355599253,1741357845331,-132607.36,0.00038356,7]
[355599254,1741357845341,-509.26940957,0.00038356,30]
[355599256,1741357845351,-850.8,0.00038356,30]
[355599257,1741357845360,-505.03400853,0.00038356,30]
[355599258,1741357845370,-512.44530984,0.00038356,30]
[355599259,1741357845379,-500.0,0.00038356,30]
[355599260,1741357845389,-500.0,0.00038356,30]
[355599262,1741357845398,-904.12,0.00038356,30]
[355599264,1741357845407,-301.66648083,0.00038356,30]
[355599266,1741357845416,-1621.58,0.00038356,30]
[355599267,1741357845426,-500.0,0.00038356,30]
[355599268,1741357845435,-210.000867,0.00038356,30]
[355599269,1741357845445,-557.75036773,0.00038356,30]
[355599270,1741357845455,-1312.15,0.00038356,30]
[355599271,1741357845465,-500.0,0.00038356,30]
[355599272,1741357845474,-500.0,0.00038356,30]
[355599273,1741357845485,-716.55,0.00038356,30]
[355599274,1741357845494,-2610.77,0.00038356,30]
[355599275,1741357845504,-500.0,0.00038356,30]
[355599276,1741357845514,-500.0,0.00038356,30]
[355599278,1741357845523,-500.0,0.00038356,30]
[355599279,1741357845532,-500.0,0.00038356,30]
[355599280,1741357845542,-500.0,0.00038356,30]
[355599281,1741357845555,-1292.51,0.00038356,30]
[355599282,1741357845565,-612.3,0.00038356,30]
[355599283,1741357845575,-500.0,0.00038356,30]
[355599284,1741357845585,-1382.9,0.00038356,30]
[355599285,1741357845594,-2004.36,0.00038356,15]
[355599286,1741357845603,-500.0,0.00038356,30]
[355599287,1741357845613,-577.0,0.00038356,30]
[355599288,1741357845623,-6428.78,0.00038356,30]
[355599289,1741357845633,-722.58,0.00038356,30]
[355599290,1741357845643,-1032.7,0.00038356,30]
[355599291,1741357845652,-500.0,0.00038356,30]
[355599292,1741357845662,-665.5,0.00038356,30]
[355599293,1741357845671,-500.0,0.00038356,30]
[355599294,1741357845680,-500.0,0.00038356,30]
[355599295,1741357845690,-8893.18,0.00038356,30]
[355599297,1741357845699,-795.02,0.00038356,30]
[355599298,1741357845709,-500.0,0.00038356,30]
[355599299,1741357845719,-1493.56,0.00038356,30]
[355599301,1741357845728,-4367.99,0.00038356,30]
[355599303,1741357845738,-749.31,0.00038356,30]
[355599304,1741357845747,-2707.82,0.00038356,30]
[355599305,1741357845756,-500.0,0.00038356,30]
[355599306,1741357845766,-643.96,0.00038356,30]
[355599307,1741357845775,-520.5224843,0.00038356,30]
[355599308,1741357845784,-500.0,0.00038356,30]
[355599309,1741357845794,-500.0,0.00038356,30]
[355599310,1741357845809,-500.0,0.00038356,30]
[355599311,1741357845819,-2470.25,0.00038356,30]
[355599312,1741357845829,-591.29,0.00038356,30]
[355599313,1741357845839,-500.0,0.00038356,30]
[355599314,1741357845849,-5064.26,0.00038356,30]
[355599315,1741357845859,-2702.56,0.00038356,30]
[355599316,1741357845869,-512.47092115,0.00038356,30]
[355599317,1741357845878,-796.49,0.00038356,30]
[355599318,1741357845890,-748.95,0.00038356,30]
[355599319,1741357845900,-968.16,0.00038356,30]
[355599320,1741357845910,-500.0,0.00038356,30]
[355599321,1741357845921,-1575.88,0.00038356,30]
[355599322,1741357845931,-1434.71,0.00038356,30]
[355599323,1741357845941,-1248.42,0.00038356,30]
[355599324,1741357845950,-1206.59,0.00038356,30]
[355599325,1741357845959,-713.9,0.00038356,30]
[355599326,1741357845969,-500.0,0.00038356,30]
[355599327,1741357845978,-674.94,0.00038356,30]
[355599328,1741357845987,-1065.08,0.00038356,7]
[355599329,1741357845997,-673.48,0.00038356,30]
[355599330,1741357846006,-1075.1,0.00038356,30]
[355599331,1741357846015,-500.0,0.00038356,30]
[355599332,1741357846024,-500.0,0.00038356,30]
[355599333,1741357846034,-765.28,0.00038356,30]
[355599334,1741357846044,-500.0,0.00038356,30]
[355599335,1741357846062,-773.72,0.00038356,30]
[355599336,1741357846073,-3559.04,0.00038356,30]
[355599337,1741357846083,-1301.44,0.00038356,30]
[355599338,1741357846095,-3825.24,0.00038356,30]
[355599339,1741357846105,-2253.86,0.00038356,30]
[355599340,1741357846116,-500.0,0.00038356,30]
[355599341,1741357846126,-4575.66,0.00038356,30]
[355599342,1741357846142,-500.0,0.00038356,30]
[355599343,1741357846153,-10000.0,0.00038356,14]
[355599344,1741357846164,-639.23,0.00038356,30]
[355599345,1741357846175,-10000.0,0.00038356,14]
[355599346,1741357846186,-4376.22,0.00038356,30]
[355599347,1741357846196,-217.139027,0.00038356,14]
[355599348,1741357846206,-1801.35,0.00038356,30]
[355599349,1741357846219,-4995.406007,0.00038356,14]
[355599350,1741357846230,-504.10736826,0.00038356,30]
[355599351,1741357846280,-500.0,0.00038356,30]
[355599352,1741357846290,-507.51811636,0.00038356,2]
[355599353,1741357846301,-500.0,0.00038356,30]
[355599354,1741357846311,-500.0,0.00038356,30]
[355599355,1741357846321,-500.0,0.00038356,30]
[355599356,1741357846331,-546.0,0.00038356,30]
[355599357,1741357846341,-500.0,0.00038356,2]
[355599358,1741357846350,-151.83540723,0.00038356,30]
[355599359,1741357846360,-9999.0,0.00038356,2]
[355599360,1741357846370,-500.0,0.00038356,30]
[355599361,1741357846379,-202.39744339,0.00038356,2]
[355599362,1741357846389,-500.0,0.00038357,2]
[355599363,1741357846399,-500.0,0.00038383,30]
[355599364,1741357846409,-500.0,0.00038383,30]
[355599365,1741357846418,-2000.0,0.000384,22]
[355599366,1741357846428,-600.0,0.000384,2]